bitfinex/quotes_ETHUSD_20240607
["timestamp","ask_amount","ask_price","bid_price","bid_amount"]
[1717789815338,3.74425466,3694.2,3693.2,2.70762]
[1717789815683,1.14934777,3694.1,3693.6,2.70737]
[1717789815898,2.54220243,3694.1,3693.6,2.70737]
[1717789816191,0.75,3693.7,3693.6,2.70737]
[1717789817772,0.67813404,3693.7,3693.6,2.70737]
[1717789819783,14.6974,3695.4,3693.6,3.25737]
[1717789819938,14.6974,3695.4,3694.8,2.7065]
[1717789820137,3.0,3694.9,3694.8,2.7065]
[1717789820371,3.0,3695.3,3694.8,2.7065]
[1717789820568,1.39285466,3695.2,3694.8,2.7065]
[1717789820979,1.39285466,3695.2,3694.4,2.70679]
[1717789821134,1.35950945,3695.1,3694.4,2.70679]
[1717789821478,1.39285466,3695.0,3694.4,2.70679]
[1717789821632,4.39285466,3695.0,3694.4,2.70679]
[1717789821835,0.87523641,3694.9,3694.4,2.70679]
[1717789822069,1.39285466,3694.8,3694.4,2.70679]
[1717789822636,0.87523641,3694.9,3694.8,2.7065]
[1717789822840,1.35950945,3695.1,3694.8,2.7065]
[1717789823044,1.39285466,3695.0,3694.8,2.7065]
[1717789823237,4.39285466,3695.0,3694.8,2.7065]
[1717789823794,6.88483979,3695.4,3695.3,2.70614]
[1717789824141,6.88483979,3695.4,3694.3,4.79983]
[1717789824142,19.26483979,3695.9,3695.6,2.70586]
[1717789824335,2.92828365,3695.9,3695.6,2.70586]
[1717789824677,1.39285466,3695.8,3695.6,2.70586]
[1717789824835,11.08076666,3695.8,3695.2,2.7062]
[1717789825040,1.39285466,3695.8,3695.2,2.7062]
[1717789825245,1.39285466,3695.8,3695.5,2.70592]
[1717789826139,3.0,3695.9,3695.5,2.70592]
[1717789826340,0.59742899,3695.8,3695.5,2.70592]
[1717789827173,1.39285466,3695.7,3694.0,2.70706]
[1717789827481,1.39285466,3695.7,3694.9,2.70638]
[1717789827978,1.39285466,3695.7,3694.0,2.70706]
[1717789827979,1.39285466,3695.7,3695.2,2.70616]
[1717789828179,0.59742899,3695.8,3695.5,2.70594]
[1717789828382,0.5997629,3695.7,3695.5,2.70594]
[1717789829459,3.0,3695.9,3695.5,2.70594]
[1717789829654,2.41022694,3696.6,3696.0,2.70556]
[1717789829853,1.39285466,3696.3,3696.0,2.70556]
[1717789830190,2.3631,3696.6,3696.0,2.70556]
[1717789830477,2.31764864,3696.5,3696.0,2.70556]
[1717789831479,0.04301569,3696.4,3696.0,2.70556]
[1717789831682,1.39285466,3696.3,3696.0,2.70556]
[1717789831839,0.04318041,3696.2,3696.0,2.70556]
[1717789832037,1.39285466,3696.3,3696.0,2.70556]
[1717789832235,0.27259436,3696.2,3696.0,2.70556]
[1717789837864,1.39285466,3696.1,3694.8,2.3135]
[1717789838068,1.39285466,3696.1,3695.6,2.70591]
[1717789838069,0.04073339,3696.0,3695.6,2.70591]
[1717789838265,1.39285466,3695.9,3695.6,2.70591]
[1717789838576,0.48400503,3695.8,3695.6,2.70591]
[1717789838943,0.04064622,3695.8,3695.6,2.70591]
[1717789839383,1.39285466,3695.7,3695.6,2.70591]
[1717789839759,1.43347341,3695.7,3695.6,2.70591]
[1717789841653,1.43347341,3695.7,3695.2,2.70618]
[1717789841878,0.14334734,3695.6,3695.2,2.70618]
[1717789842051,1.43332842,3695.5,3695.2,2.70618]
[1717789844454,0.06883569,3695.5,3695.2,2.70618]
[1717789853514,0.04047376,3695.5,3695.2,2.70618]
[1717789853815,3.58539361,3696.1,3695.7,2.70577]
[1717789854019,1.39285466,3696.0,3695.7,2.70577]
[1717789854221,1.37233945,3695.9,3695.7,2.70577]
[1717789854382,1.39285466,3695.8,3695.7,2.70577]
[1717789854705,4.39285466,3695.8,3695.7,2.70577]
[1717789856904,3.0,3695.8,3695.7,2.70577]
[1717789857101,1.37233945,3695.9,3695.7,2.70577]
[1717789857412,0.49576778,3695.8,3695.7,2.70577]
[1717789857616,3.53634487,3695.8,3695.7,2.70577]
[1717789857812,3.62591541,3695.8,3695.7,2.70577]
[1717789858011,3.04057709,3695.8,3695.7,2.70577]
[1717789860632,3.04057709,3695.8,3695.3,2.70612]
[1717789860633,20.25208675,3695.8,3695.3,2.70612]
[1717789860794,1.39285466,3695.7,3695.3,2.70612]
[1717789860996,2.16244262,3695.6,3695.3,2.70612]
[1717789861320,1.39285466,3695.5,3695.3,2.70612]
[1717789861520,0.04055681,3695.4,3695.3,2.70612]
[1717789863988,1.37233945,3695.9,3695.3,2.70612]
[1717789864217,1.37233945,3695.9,3694.4,2.70677]
[1717789864218,28.43597209,3695.4,3694.4,2.70677]
[1717789864419,28.43597209,3695.4,3694.0,2.70705]
[1717789864420,1.39285466,3695.1,3694.0,2.70705]
[1717789864607,2.2565,3694.9,3694.0,2.70705]
[1717789864805,1.39285466,3694.8,3694.0,2.70705]
[1717789865003,1.43315645,3694.8,3694.0,2.70705]
[1717789865208,5.01866405,3694.8,3694.0,2.70705]
[1717789865524,1.50725241,3694.7,3694.0,2.70705]
[1717789865723,1.43262183,3694.6,3693.6,2.70736]
[1717789865930,3.52362183,3694.6,3693.6,2.70736]
[1717789866086,3.0,3694.5,3693.6,2.70736]
[1717789866292,1.39285466,3694.4,3693.6,2.70736]
[1717789866492,0.75054566,3694.3,3693.6,2.70736]
[1717789866691,1.39285466,3694.2,3693.6,2.70736]
[1717789866927,0.03954547,3694.1,3693.6,2.70736]
[1717789867131,3.72875466,3694.0,3693.2,2.70765]
[1717789867333,4.98456908,3693.9,3693.2,2.70765]
[1717789867493,1.39285466,3693.8,3693.2,2.70765]
[1717789867692,1.97836226,3693.8,3693.2,2.70765]
[1717789868027,19.61513931,3693.7,3693.2,2.70765]
[1717789868246,4.39285466,3693.6,3692.8,2.70794]
[1717789868395,2.2761244,3693.5,3692.8,2.70794]
[1717789868596,1.39285466,3693.4,3692.8,2.70794]
[1717789868900,0.03881066,3693.3,3692.8,2.70794]
[1717789869235,1.39285466,3693.2,3692.8,2.70794]
[1717789869621,0.03860606,3693.1,3692.4,2.70824]
[1717789869835,1.39285466,3693.0,3692.4,2.70824]
[1717789870201,0.03844035,3692.9,3692.4,2.70824]
[1717789870511,1.39285466,3692.8,3692.4,2.70824]
[1717789870707,0.03835303,3692.7,3692.4,2.70824]
[1717789870939,1.39285466,3692.8,3692.4,2.70824]
[1717789871093,0.1776385,3692.7,3692.4,2.70824]
[1717789871297,3.81675466,3692.6,3692.2,0.1233884]
[1717789871536,0.03806034,3692.5,3692.2,0.1233884]
[1717789871832,1.39285466,3692.4,3692.2,0.1233884]
[1717789872036,5.47342766,3692.4,3692.2,0.1233884]
[1717789872218,3.03778928,3692.3,3692.2,0.1233884]
[1717789872419,11.75247963,3692.3,3692.2,0.1233884]
[1717789872620,6.03355563,3692.3,3692.2,0.1233884]
[1717789873203,4.43064394,3692.3,3692.2,0.1233884]
[1717789873405,10.69205894,3692.3,3692.2,0.1233884]
[1717789873707,11.87261194,3692.3,3692.2,0.1233884]
[1717789873931,12.69354094,3692.3,3692.2,0.1233884]
[1717789874104,10.79303094,3692.3,3692.2,0.1233884]
[1717789874441,12.59494203,3692.3,3692.2,0.1233884]
[1717789875062,8.72185094,3692.3,3692.2,0.1233884]
[1717789876369,8.72185094,3692.3,3692.2,0.06904087]
[1717789877211,12.11365094,3692.3,3692.2,0.06904087]
[1717789877404,2.3901,3692.1,3690.7,2.70944]
[1717789877712,2.094,3691.1,3690.7,2.70944]
[1717789877908,1.42981428,3691.0,3690.7,2.70944]
[1717789878124,10.66386828,3691.0,3690.7,2.70944]
[1717789878746,5.503727,3690.9,3690.7,2.70944]
[1717789878911,4.42956623,3690.8,3690.7,2.70944]
[1717789879246,5.93229555,3690.8,3690.7,2.70944]
[1717789879450,8.41880623,3690.8,3690.7,2.70944]
[1717789879648,4.42956623,3690.8,3690.7,2.70944]
[1717789879856,1.42956623,3690.8,3690.7,2.70944]
[1717789880156,3.43e-06,3690.8,3690.7,8.12846]
[1717789880313,7.43,3692.3,3692.0,2.70855]
[1717789880509,7.43,3693.0,3692.8,2.70797]
[1717789880825,0.42459251,3693.4,3692.8,2.70797]
[1717789880826,0.0471646,3693.4,3693.2,2.70765]
[1717789881005,7.43,3693.7,3693.2,2.70765]
[1717789883949,3.0,3693.6,3693.2,2.70765]
[1717789884649,3.0,3694.2,3693.8,2.70721]
[1717789884959,1.35767052,3694.1,3693.8,2.70721]
[1717789885117,0.71091294,3694.3,3693.8,2.70721]
[1717789885118,3.71091294,3694.3,3693.8,2.70721]
[1717789885455,3.0,3694.3,3693.8,2.70721]
[1717789885617,2.43579222,3694.4,3693.2,2.70761]
[1717789885618,46.910344,3694.2,3693.2,2.70761]
[1717789886019,4.39285466,3694.1,3693.2,2.70761]
[1717789886516,1.39285466,3694.1,3693.2,2.70761]
[1717789886712,3.43928547,3694.0,3693.2,2.70761]
[1717789886912,1.39285466,3693.9,3693.2,2.70761]
[1717789887409,1.39285466,3693.9,3693.6,2.70737]
[1717789888554,3.91,3693.8,3693.6,2.70737]
[1717789888761,4.39285466,3693.7,3693.6,2.70737]
[1717789888964,6.54785466,3693.7,3693.6,2.70737]
[1717789890056,3.0,3693.7,3693.6,2.978107]
[1717789890248,3.0,3693.7,3693.6,2.70737]
[1717789890462,0.00509222,3694.4,3693.6,2.70737]
[1717789890623,1.39285466,3694.3,3693.6,2.70737]
[1717789891680,1.39285466,3694.3,3694.0,2.70705]
[1717789892149,9.258881,3694.2,3694.0,2.70705]
[1717789892346,5.45853745,3694.1,3694.0,2.70705]
[1717789892888,12.95951145,3694.1,3694.0,2.70705]
[1717789893527,11.95032045,3694.1,3694.0,2.70705]
[1717789893733,3.0,3694.1,3694.0,2.70705]
[1717789893946,0.00509222,3694.4,3694.0,2.70705]
[1717789895451,0.00509222,3694.4,3694.0,5.41413]
[1717789896056,0.00509222,3694.4,3694.2,5.41388]
[1717789897069,0.00509222,3694.4,3694.3,0.55]
[1717789897289,0.00509222,3694.4,3694.3,1.146388]
[1717789900777,0.00509222,3694.4,3694.2,5.41388]
[1717789900778,0.00509222,3694.4,3694.2,2.70694]
[1717789905011,0.00509222,3694.4,3694.2,5.41388]
[1717789907075,0.00509222,3694.4,3694.2,2.70694]
[1717789907378,1.39285466,3694.3,3694.2,2.70694]
[1717789907570,1.53264935,3694.3,3694.2,2.70694]
[1717789910996,0.00509222,3694.4,3694.2,2.70694]
[1717789920823,0.00509222,3694.4,3694.2,5.41387]
[1717789922224,0.00509222,3694.4,3694.2,2.70693]
[1717789924023,1.39285466,3694.3,3694.2,2.70693]
[1717789924920,1.39285466,3694.3,3693.8,2.70717]
[1717789925072,0.13979469,3694.2,3693.8,2.70717]
[1717789925277,1.39285466,3694.1,3693.4,2.70746]
[1717789929083,28.345767,3694.0,3693.4,2.70746]
[1717789929281,4.97848207,3693.9,3693.4,2.70746]
[1717789929512,32.53375707,3693.9,3693.4,2.70746]
[1717789929711,3.23593286,3693.8,3693.4,2.70746]
[1717789929923,4.39285466,3693.7,3693.0,2.70778]
[1717789930284,4.97851549,3693.7,3692.6,2.70808]
[1717789930605,32.323768,3693.6,3692.6,2.70808]
[1717789930911,2.2957,3693.4,3692.6,2.70808]
[1717789931073,5.09864821,3693.3,3692.2,2.70837]
[1717789931279,3.0,3693.2,3692.2,2.70837]
[1717789931506,1.39285466,3693.1,3692.2,2.70837]
[1717789933382,20.7364,3693.0,3692.2,2.70837]
[1717789933605,4.39285466,3692.9,3692.2,2.70837]
[1717789933803,2.43308997,3692.8,3692.2,2.70837]
[1717789934022,1.39285466,3692.7,3692.2,2.70837]
[1717789934355,4.39285466,3692.7,3692.2,2.70837]
[1717789934525,1.39285466,3692.7,3692.2,2.70837]
[1717789934683,3.0,3692.6,3692.2,2.70837]
[1717789935020,1.39285466,3692.5,3692.2,2.70837]
[1717789935380,3.0,3693.2,3692.2,2.70837]
[1717789935578,3.03600401,3693.1,3692.2,2.70837]
[1717789935812,3.0,3693.0,3692.2,2.70837]
[1717789936023,1.39285466,3692.9,3692.2,2.70837]
[1717789936582,1.39285466,3692.9,3691.3,2.4162]
[1717789936583,1.39285466,3692.9,3692.6,2.70811]
[1717789937108,4.892654,3692.8,3692.6,2.70811]
[1717789937304,3.0,3692.7,3692.6,2.70811]
[1717789937822,8.625876,3692.7,3692.6,2.70811]
[1717789938212,7.935458,3692.7,3692.6,2.70811]
[1717789938600,3.0,3692.7,3692.6,2.70811]
[1717789938824,4.53468,3692.7,3692.6,2.70811]
[1717789939125,7.53468,3692.7,3692.6,2.70811]
[1717789939313,3.0,3692.7,3692.6,2.70811]
[1717789939519,7.662678,3692.7,3692.6,2.70811]
[1717789939706,10.00238613,3692.7,3691.5,2.2597]
[1717789940028,10.00238613,3692.7,3692.4,2.70823]
[1717789940029,4.39285466,3692.6,3692.4,2.70823]
[1717789940453,1.39285466,3692.6,3692.4,2.70823]
[1717789947760,4.837636,3692.5,3692.0,2.70848]
[1717789947965,1.39285466,3692.4,3692.0,2.70848]
[1717789948171,1.39285466,3692.4,3691.0,5.17974]
[1717789948172,4.39285466,3692.4,3691.6,2.7088]
[1717789948371,1.39285466,3692.4,3691.6,2.7088]
[1717789948572,3.88966494,3692.3,3691.6,2.7088]
[1717789948730,4.39285466,3692.2,3691.6,2.7088]
[1717789948927,1.39285466,3692.2,3691.6,2.7088]
[1717789951184,23.866358,3692.1,3691.2,2.70911]
[1717789951343,7.00774242,3692.0,3691.2,2.70911]
[1717789951942,4.39285466,3692.0,3691.2,2.70911]
[1717789952139,3.0,3691.9,3691.2,2.70911]
[1717789952462,1.39285466,3691.8,3691.2,2.70911]
[1717789954376,3.48685466,3691.8,3691.2,2.70911]
[1717789954671,20.577512,3691.7,3691.2,2.70911]
[1717789954872,3.79929133,3691.6,3691.2,2.70911]
[1717789955176,3.0,3691.5,3691.2,2.70911]
[1717789955676,1.39285466,3691.6,3691.2,2.70911]
[1717789958976,3.0,3692.0,3691.2,2.70911]
[1717789959289,1.39285466,3691.9,3691.5,2.70891]
[1717789968885,40.811839,3691.8,3690.7,2.3572]
[1717789969033,4.39285466,3691.7,3690.7,2.3572]
[1717789969222,1.39285466,3691.7,3690.7,2.3572]
[1717789969571,1.39285466,3691.7,3690.7,2.59292]
[1717789970343,1.39285466,3691.7,3691.0,2.70927]
[1717789971764,1.39285466,3691.7,3691.2,2.70907]
[1717789975380,1.39285466,3691.7,3691.4,2.70893]
[1717789986188,4.39285466,3691.7,3691.4,2.70893]
[1717789986360,1.39285466,3691.7,3691.4,2.70893]
[1717789988997,1.95927531,3691.7,3691.4,2.70893]
[1717789989291,1.96899174,3691.6,3691.4,2.70893]
[1717789989595,4.96899174,3691.6,3691.4,2.70893]
[1717789989794,1.96902185,3691.5,3691.4,2.70893]
[1717789990096,4.96902185,3691.5,3691.4,2.70893]
[1717789990464,5.7204233,3691.5,3691.4,2.70893]
[1717789992809,5.72041404,3691.5,3691.4,2.70893]
[1717789993018,4.96901259,3691.5,3691.4,2.70893]
[1717789993172,1.96901259,3691.5,3691.4,2.70893]
[1717789999996,2.76301259,3691.5,3691.4,2.70893]
[1717790000182,5.76301259,3691.5,3691.4,2.70893]
[1717790000833,3.794,3691.5,3691.4,2.70893]
[1717790001019,4.55618547,3691.5,3691.4,2.70893]
[1717790001319,3.5252161,3691.5,3691.4,2.70893]
[1717790001621,4.96903063,3691.5,3691.4,2.70893]
[1717790001824,1.96903063,3691.5,3691.4,2.70893]
[1717790004103,3.0,3691.6,3691.4,2.70893]
[1717790004417,1.39285466,3691.7,3691.4,2.70893]
[1717790005023,1.9689478,3691.6,3691.4,2.70893]
[1717790005222,4.9689478,3691.6,3691.4,2.70893]
[1717790005421,1.9689478,3691.5,3691.4,2.70893]
[1717790005722,4.9689478,3691.5,3691.4,2.70893]
[1717790005921,1.9689478,3691.5,3691.4,2.70893]
[1717790007534,1.9689478,3691.5,3691.4,3.213813]
[1717790007719,4.96885206,3692.0,3691.9,2.70863]
[1717790008063,1.96885206,3692.0,3691.9,2.70863]
[1717790008380,7.43,3692.6,3692.4,2.70826]
[1717790008662,3.36129379,3692.5,3692.4,2.70826]
[1717790009670,3.77733239,3692.5,3692.4,2.70826]
[1717790010369,6.77733239,3692.5,3692.4,2.70826]
[1717790010658,7.57133239,3692.5,3692.4,2.70826]
[1717790011754,7.15529379,3692.5,3692.4,2.70826]
[1717790012263,4.96843913,3692.5,3692.4,2.70826]
[1717790012561,3.0,3692.5,3692.4,2.70826]
[1717790012759,0.79909222,3692.8,3692.4,2.70826]
[1717790012922,1.96829947,3692.7,3692.4,2.70826]
[1717790013127,4.96829947,3692.7,3692.4,2.70826]
[1717790013458,3.0,3692.7,3692.4,2.70826]
[1717790013665,0.79909222,3692.8,3692.4,2.70826]
[1717790014123,0.794,3692.6,3692.4,2.70826]
[1717790015819,0.00509222,3692.8,3692.4,2.70826]
[1717790016661,0.00509222,3692.8,3692.4,2.979086]
[1717790017374,0.00509222,3692.8,3692.4,2.70826]
[1717790018764,0.00509222,3692.8,3692.7,2.70804]
[1717790020434,0.00509222,3692.8,3692.7,5.41608]
[1717790021065,0.00509222,3692.8,3692.7,5.96608]
[1717790021739,2.22e-06,3692.8,3692.7,12.34387466]
[1717790021938,2.22e-06,3692.8,3692.7,12.45622947]
[1717790024455,2.22e-06,3692.8,3692.7,4.21324947]
[1717790024657,2.22e-06,3692.8,3692.7,2.70804]
[1717790024859,2.22e-06,3692.8,3692.7,5.41608]
[1717790025438,2.22e-06,3692.8,3692.7,10.60702]
[1717790026678,2.22e-06,3692.8,3692.7,8.44898]
[1717790028646,2.22e-06,3692.8,3692.7,12.54987466]
[1717790028882,2.22e-06,3692.8,3692.7,13.80486213]
[1717790031183,2.22e-06,3692.8,3692.7,12.41200747]
[1717790031393,2.22e-06,3692.8,3692.7,9.70396747]
[1717790034056,2.22e-06,3692.8,3692.7,7.22106747]
[1717790034569,2.22e-06,3692.8,3692.7,5.96608]
[1717790035032,2.22e-06,3692.8,3692.7,14.44817466]
[1717790035204,2.22e-06,3692.8,3692.7,13.05532]
[1717790035615,2.4553,3694.5,3694.0,2.70703]
[1717790035846,1.39285466,3694.4,3694.0,2.70703]
[1717790036024,4.39285466,3694.4,3694.0,2.70703]
[1717790038507,4.39285466,3694.4,3694.2,2.70687]
[1717790040048,3.0,3694.4,3694.2,2.70687]
[1717790040409,2.4553,3694.5,3694.2,2.70687]
[1717790040730,1.63838466,3694.4,3694.2,2.70687]
[1717790041061,1.39285466,3694.3,3694.2,2.70687]
[1717790041360,4.39285466,3694.3,3694.2,2.70687]
[1717790041751,1.39285466,3694.3,3694.2,2.70687]
[1717790042277,4.37511866,3694.3,3693.1,2.70768]
[1717790042452,3.70936847,3694.2,3693.8,2.70718]
[1717790042642,1.39285466,3694.1,3693.8,2.70718]
[1717790046968,3.0,3694.4,3694.2,2.70691]
[1717790047138,1.39285466,3694.3,3694.2,2.70691]
[1717790047340,1.39285466,3694.4,3694.2,2.70691]
[1717790050168,3.0,3694.7,3694.5,2.70671]
[1717790050356,1.39285466,3694.6,3694.5,2.70671]
[1717790051970,1.81709914,3694.6,3694.5,2.70671]
[1717790052469,1.81509914,3694.6,3694.5,2.70671]
[1717790053167,1.39085466,3694.6,3694.5,2.70671]
[1717790053953,3.0,3694.7,3694.5,2.70671]
[1717790054149,4.39285466,3694.7,3694.5,2.70671]
[1717790057968,0.792,3694.6,3694.5,2.70671]
[1717790058974,4.65215466,3694.6,3694.5,2.70671]
[1717790059170,9.16037013,3694.6,3694.5,2.70671]
[1717790059368,9.16037013,3694.6,3694.1,2.70695]
[1717790059575,0.792,3694.2,3694.1,2.70695]
[1717790060594,3.0,3694.4,3694.1,2.70695]
[1717790060796,0.792,3694.2,3694.1,2.70695]
[1717790061402,1.39285466,3694.3,3694.1,2.70695]
[1717790061601,0.792,3694.2,3694.1,2.70695]
[1717790061959,1.39285466,3694.3,3694.1,2.70695]
[1717790062161,0.62958547,3694.2,3694.1,2.70695]
[1717790063602,2.02244013,3694.2,3694.1,2.70695]
[1717790063901,2.04954013,3694.2,3694.1,2.70695]
[1717790064104,2.04954013,3694.2,3693.6,2.70732]
[1717790064301,1.39285466,3694.1,3693.8,2.70718]
[1717790064612,0.0271,3694.2,3694.0,2.70702]
[1717790064874,1.41995466,3694.2,3694.0,2.70702]
[1717790066929,1.39285466,3694.1,3693.4,2.70753]
[1717790067136,1.39285466,3694.1,3693.6,2.70731]
[1717790067325,1.903,3694.0,3693.6,2.70731]
[1717790067501,1.39285466,3693.9,3693.6,2.70731]
[1717790067702,4.42153698,3693.9,3693.6,2.70731]
[1717790067903,3.0,3693.8,3693.6,2.70731]
[1717790068102,4.97852763,3693.8,3693.6,2.70731]
[1717790069036,4.97852763,3693.8,3693.3,2.7076]
[1717790071142,6.8815362,3693.8,3693.3,2.7076]
[1717790071344,7.29159167,3693.8,3693.3,2.7076]
[1717790072723,7.29159167,3693.8,3693.0,2.70782]
[1717790072724,1.39285466,3693.7,3693.0,2.70782]
[1717790073026,1.97852953,3693.7,3693.0,2.70782]
[1717790073349,1.97852953,3693.7,3692.7,2.70804]
[1717790073507,2.334,3693.3,3692.7,2.70804]
[1717790073840,1.903,3693.0,3692.4,2.70826]
[1717790074043,1.39285466,3692.9,3692.4,2.70826]
[1717790074505,3.29585466,3692.9,3692.4,2.70826]
[1717790074700,3.32958547,3692.8,3692.4,2.70826]
[1717790074906,1.39285466,3692.7,3692.4,2.70826]
[1717790076235,4.903,3693.2,3692.4,2.70826]
[1717790076411,1.39285466,3693.1,3692.4,2.70826]
[1717790078625,1.39285466,3693.1,3692.0,2.3146]
[1717790079473,1.39285466,3693.1,3692.7,2.70801]
[1717790080327,1.39285466,3693.1,3692.0,2.3146]
[1717790080328,3.0,3693.2,3692.9,2.70785]
[1717790080535,3.0,3693.5,3692.9,2.70785]
[1717790080733,1.39285466,3693.4,3692.9,2.70785]
[1717790081860,1.39285466,3693.4,3693.2,2.70767]
[1717790085126,2.2787,3693.3,3692.8,2.70791]
[1717790085376,1.903,3693.1,3692.8,2.70791]
[1717790085542,1.39285466,3693.0,3692.8,2.70791]
[1717790085938,4.39285466,3693.0,3692.8,2.70791]
[1717790086947,4.41995466,3693.0,3692.8,2.70791]
[1717790089844,0.0271,3693.0,3692.8,2.70791]
[1717790090054,0.0271,3693.0,3692.8,2.978701]
[1717790090483,0.0271,3693.0,3692.9,0.55]
[1717790091558,0.0271,3693.0,3692.9,2.9475]
[1717790093894,3.58559376,3694.3,3693.3,2.70759]
[1717790094093,4.97844842,3694.3,3693.4,0.820759]
[1717790094305,5.35845377,3694.3,3693.4,0.820759]
[1717790095299,5.35845377,3694.3,3694.0,2.70704]
[1717790095891,4.97844842,3694.3,3694.0,2.70704]
[1717790099404,1.39285466,3694.2,3694.0,2.70704]
[1717790099617,1.903,3694.1,3692.9,2.3975]
[1717790099927,1.77286001,3694.0,3692.9,2.3975]
[1717790100074,4.77286001,3694.0,3692.9,2.3975]
[1717790100267,3.38000535,3694.0,3693.7,2.70724]
[1717790100475,3.0,3694.2,3694.1,2.70701]
[1717790100785,1.39285466,3694.6,3694.1,2.70701]
[1717790101121,1.903,3694.5,3693.7,2.70725]
[1717790101328,1.903,3694.1,3693.7,2.70725]
[1717790101503,1.58315466,3694.0,3693.7,2.70725]
[1717790101676,1.39285466,3694.0,3693.7,2.70725]
[1717790101876,1.39285466,3694.0,3693.4,2.70752]
[1717790102190,0.38000535,3693.9,3693.4,2.70752]
[1717790102380,1.77286001,3693.9,3693.4,2.70752]
[1717790102586,4.77286001,3693.9,3693.4,2.70752]
[1717790102809,1.77286001,3693.9,3693.4,2.70752]
[1717790102985,1.39285466,3693.9,3693.4,2.70752]
[1717790103314,1.39285466,3693.9,3693.7,2.70729]
[1717790103515,2.02244013,3693.9,3693.4,2.70752]
[1717790103720,5.02244013,3693.9,3693.4,2.70752]
[1717790104148,4.39285466,3693.8,3693.4,2.70752]
[1717790104300,2.4618,3693.6,3693.0,2.70777]
[1717790104635,3.29685466,3693.5,3693.0,2.70777]
[1717790104818,3.64675466,3693.1,3691.3,2.709]
[1717790105003,3.64675466,3693.1,3691.9,2.70857]
[1717790105004,1.904,3692.5,3691.9,2.70857]
[1717790105208,3.83715466,3692.4,3691.9,2.70857]
[1717790105510,5.74115466,3692.4,3691.9,2.70857]
[1717790105727,3.0,3692.3,3691.9,2.70857]
[1717790105893,1.39285466,3692.2,3691.9,2.70857]
[1717790108330,3.0,3692.3,3691.9,2.70857]
[1717790108532,3.58582451,3692.8,3692.1,2.70848]
[1717790108826,3.29685466,3692.7,3692.1,2.70848]
[1717790109010,3.0,3692.6,3692.1,2.70848]
[1717790109216,1.39285466,3692.5,3692.1,2.70848]
[1717790111250,1.39285466,3692.5,3691.7,2.70876]
[1717790111558,1.904,3692.1,3691.7,2.70876]
[1717790111704,1.39285466,3692.0,3691.7,2.70876]
[1717790112210,1.39285466,3692.0,3691.3,2.70905]
[1717790112211,4.39285466,3692.0,3691.3,2.70905]
[1717790118052,4.77286001,3692.0,3691.3,2.70905]
[1717790118215,0.667686,3691.9,3691.3,2.70905]
[1717790118418,1.39285466,3691.8,3691.3,2.70905]
[1717790119125,2.2952,3691.6,3691.3,2.70905]
[1717790119336,6.68805466,3691.6,3691.3,2.70905]
[1717790120222,4.39285466,3691.6,3691.3,2.70905]
[1717790121779,5.08930873,3691.6,3691.3,2.70905]
[1717790122561,4.39285466,3691.6,3691.3,2.70905]
[1717790127342,3.0,3691.6,3691.3,2.70905]
[1717790127537,0.58597207,3692.2,3690.7,2.7095]
[1717790127754,7.43,3692.3,3690.7,2.7095]
[1717790127755,7.43,3692.3,3690.8,3.0398]
[1717790128059,7.43,3692.3,3692.0,2.7085]
[1717790128282,1.904,3692.6,3692.0,2.7085]
[1717790128426,1.39285466,3692.5,3692.0,2.7085]
[1717790128772,1.77286001,3692.5,3692.0,2.7085]
[1717790128971,7.43,3692.8,3692.3,2.70827]
[1717790129382,8.82285466,3692.8,3692.3,2.70827]
[1717790130255,3.0,3692.7,3692.3,2.70827]
[1717790130464,3.35566452,3692.7,3692.3,2.70827]
[1717790131533,3.0,3692.7,3692.3,2.70827]
[1717790132272,1.904,3693.0,3692.9,2.70789]
[1717790132437,1.95116527,3693.4,3692.9,2.70789]
[1717790132642,1.74851918,3693.3,3692.9,2.70789]
[1717790133846,4.74851918,3693.3,3692.9,2.70789]
[1717790134059,5.33427328,3693.3,3692.9,2.70789]
[1717790134280,7.03733714,3693.3,3692.9,2.70789]
[1717790134481,0.5857541,3693.2,3692.9,2.70789]
[1717790135962,0.94141862,3693.2,3692.9,2.70789]
[1717790136144,3.35566452,3693.2,3692.9,2.70789]
[1717790136351,0.35566452,3693.2,3692.9,2.70789]
[1717790137682,1.904,3693.0,3692.5,2.70814]
[1717790137885,6.65251918,3693.0,3692.5,2.70814]
[1717790138759,6.29685466,3693.0,3692.5,2.70814]
[1717790139584,1.39285466,3692.7,3691.0,2.3588]
[1717790139878,1.904,3691.9,3691.0,2.3588]
[1717790140091,3.29685466,3691.9,3691.0,2.3588]
[1717790140243,3.0,3691.8,3691.0,2.3588]
[1717790140442,3.0,3691.8,3690.9,0.57493]
[1717790140678,3.0,3691.8,3691.1,2.70916]
[1717790140679,1.74851918,3691.7,3691.1,2.70916]
[1717790140984,1.904,3691.2,3691.1,2.70916]
[1717790141142,3.29685466,3691.2,3690.7,2.70949]
[1717790141343,1.904,3690.8,3690.7,2.70949]
[1717790146970,3.29685466,3690.8,3690.1,2.70989]
[1717790147273,4.39285466,3690.7,3690.1,2.70989]
[1717790147515,0.87599387,3690.6,3690.1,2.70989]
[1717790147684,1.39285466,3690.5,3690.1,2.70989]
[1717790150375,3.0,3690.7,3690.1,2.70989]
[1717790150583,3.0,3690.9,3690.4,2.70969]
[1717790150889,4.39285466,3690.9,3690.4,2.70969]
[1717790152364,1.39285466,3690.8,3690.4,2.70969]
[1717790152797,3.0,3690.9,3690.4,2.70969]
[1717790152955,1.39285466,3690.8,3690.6,2.70951]
[1717790153951,3.0,3690.9,3690.6,2.70951]
[1717790154253,3.0,3690.9,3690.6,3.217031]
[1717790154690,3.0,3691.3,3691.1,2.70921]
[1717790154889,1.39285466,3691.2,3691.1,2.70921]
[1717790155605,3.29685466,3691.2,3691.1,2.70921]
[1717790155764,6.29685466,3691.2,3691.1,2.70921]
[1717790156388,5.76554013,3691.2,3690.7,2.70946]
[1717790156592,1.904,3690.8,3690.7,2.70946]
[1717790156762,3.29685466,3690.8,3690.7,2.70946]